bitfinex-derivatives/quotes_BTCF0:USTF0_20250629
["timestamp","ask_amount","ask_price","bid_price","bid_amount"]
[1751199574392,0.4115487,108310.0,108300.0,0.6435095]
[1751199574594,0.4125487,108310.0,108300.0,0.6435095]
[1751199574786,0.4095487,108310.0,108300.0,0.6425095]
[1751199576393,0.4415487,108310.0,108300.0,0.6425095]
[1751199578291,0.3492326,108310.0,108300.0,0.6425095]
[1751199578590,0.002,108310.0,108300.0,0.6425095]
[1751199581996,0.002,108310.0,108300.0,0.67934168]
[1751199587001,0.31772046,108330.0,108320.0,0.1845755]
[1751199587203,0.31636031,108330.0,108320.0,0.5453755]
[1751199587500,0.34836031,108330.0,108320.0,0.5453755]
[1751199587897,0.33899275,108330.0,108320.0,0.5453755]
[1751199588297,0.34399275,108330.0,108320.0,0.5453755]
[1751199588896,0.34799275,108330.0,108320.0,0.5463755]
[1751199592202,0.34799275,108330.0,108320.0,0.1855755]
[1751199592406,0.34799275,108330.0,108320.0,0.5463755]
[1751199595709,0.37829275,108330.0,108320.0,0.5463755]
[1751199596103,0.37829275,108330.0,108320.0,0.62202824]
[1751199599411,0.33214995,108330.0,108320.0,0.62202824]
[1751199607316,0.33214995,108330.0,108320.0,1.18306824]
[1751199608818,0.33214995,108330.0,108320.0,0.62202824]
[1751199609022,0.33214995,108330.0,108320.0,1.18306824]
[1751199612324,0.33214995,108330.0,108320.0,1.21990042]
[1751199614826,0.35311586,108330.0,108320.0,1.18306824]
[1751199621937,0.35311586,108330.0,108320.0,0.82226824]
[1751199622238,0.35311586,108330.0,108320.0,1.18306824]
[1751199623636,0.35311586,108330.0,108320.0,0.82226824]
[1751199623838,0.35311586,108330.0,108320.0,1.18306824]
[1751199624239,0.33214995,108330.0,108320.0,1.21994432]
[1751199627138,0.33214995,108330.0,108320.0,0.85914432]
[1751199627339,0.33214995,108330.0,108320.0,1.21994432]
[1751199629538,0.33214995,108330.0,108320.0,0.65890432]
[1751199629736,0.33214995,108330.0,108320.0,1.21986432]
[1751199632941,0.33214995,108330.0,108320.0,1.24986432]
[1751199637637,0.33214995,108330.0,108320.0,1.21298824]
[1751199640345,0.33214995,108330.0,108320.0,0.62202824]
[1751199640641,0.33214995,108330.0,108320.0,0.82214824]
[1751199644549,0.33214995,108330.0,108320.0,0.85494824]
[1751199646049,0.33214995,108330.0,108320.0,0.29402824]
[1751199646350,0.33214995,108330.0,108320.0,0.85490824]
[1751199646753,0.33214995,108330.0,108320.0,0.29402824]
[1751199646953,0.33214995,108330.0,108320.0,0.85490824]
[1751199647547,0.33214995,108330.0,108320.0,0.89178432]
[1751199650255,0.33214995,108330.0,108320.0,0.85898432]
[1751199652047,0.33214995,108330.0,108320.0,0.11352882]
[1751199652248,0.33214995,108330.0,108320.0,0.85894512]
[1751199652655,0.33214995,108330.0,108320.0,0.29810512]
[1751199652850,0.33214995,108330.0,108320.0,0.85894512]
[1751199662064,0.46178995,108330.0,108320.0,0.85894512]
[1751199666461,0.46178995,108330.0,108320.0,0.82206904]
[1751199666869,0.33214995,108330.0,108320.0,0.82206904]
[1751199667063,0.33214995,108330.0,108320.0,0.85246904]
[1751199667560,0.3020101,108330.0,108320.0,0.85246904]
[1751199667866,0.1935698,108330.0,108320.0,1.27876904]
[1751199668169,0.1935698,108330.0,108320.0,1.37095706]
[1751199669168,0.1935698,108330.0,108320.0,1.38034576]
[1751199669367,0.009,108330.0,108320.0,1.34346968]
[1751199669763,0.41675507,108350.0,108340.0,0.1845422]
[1751199669958,0.3612283,108350.0,108340.0,0.76223658]
[1751199670159,0.3612283,108350.0,108340.0,1.21783658]
[1751199670368,0.3150946,108350.0,108340.0,1.21783658]
[1751199670869,0.1935346,108350.0,108340.0,1.21783658]
[1751199671073,0.2005346,108350.0,108340.0,1.25568121]
[1751199672374,0.016,108350.0,108340.0,1.25568121]
[1751199675970,0.016,108350.0,108340.0,1.38524121]
[1751199677674,0.016,108350.0,108340.0,1.34839658]
[1751199679675,0.2005252,108350.0,108340.0,1.34839658]
[1751199681978,0.016,108350.0,108340.0,1.34839658]
[1751199682678,0.00157416,108360.0,108350.0,0.1845252]
[1751199682874,0.00157416,108360.0,108350.0,0.6085252]
[1751199684371,0.00657416,108360.0,108350.0,0.6095252]
[1751199685079,0.00657416,108360.0,108350.0,0.6125252]
[1751199686777,0.18608226,108360.0,108350.0,1.3045252]
[1751199686980,0.18608226,108360.0,108350.0,1.2736252]
[1751199687166,0.24948226,108360.0,108350.0,1.2736252]
[1751199687376,0.24948226,108360.0,108350.0,1.3066252]
[1751199692474,0.06497416,108360.0,108350.0,1.3066252]
[1751199692673,0.24948226,108360.0,108350.0,0.6166252]
[1751199692874,0.24948226,108360.0,108350.0,1.1440652]
[1751199693277,0.24948226,108360.0,108350.0,1.18090983]
[1751199693779,0.28048226,108360.0,108350.0,1.18090983]
[1751199694075,0.28048226,108360.0,108350.0,0.62046983]
[1751199694280,0.28048226,108360.0,108350.0,1.18090983]
[1751199697693,0.28048226,108360.0,108350.0,1.14856983]
[1751199697995,0.28048226,108360.0,108350.0,1.1117252]
[1751199698290,0.28048226,108360.0,108350.0,1.14856983]
[1751199699394,0.28048226,108360.0,108350.0,1.16289034]
[1751199699786,0.28048226,108360.0,108350.0,1.14856983]
[1751199700189,0.28048226,108360.0,108350.0,1.16289709]
[1751199700495,0.28048226,108360.0,108350.0,1.14856983]
[1751199701395,0.28048226,108360.0,108350.0,1.20383678]
[1751199703490,0.28048226,108360.0,108350.0,0.64343678]
[1751199703696,0.28048226,108360.0,108350.0,1.20379678]
[1751199705901,0.28048226,108360.0,108350.0,0.84299678]
[1751199706094,0.28048226,108360.0,108350.0,1.20379678]
[1751199710304,0.28048226,108360.0,108350.0,1.20375678]
[1751199710903,0.28048226,108360.0,108350.0,1.14848983]
[1751199713503,0.28048226,108360.0,108350.0,0.58816983]
[1751199713696,0.28048226,108360.0,108350.0,0.65843158]
[1751199714799,0.28048226,108360.0,108350.0,0.09811158]
[1751199715002,0.28048226,108360.0,108350.0,0.62158695]
[1751199715406,0.28048226,108360.0,108350.0,0.8429264]
[1751199715905,0.28048226,108360.0,108350.0,0.78765945]
[1751199716300,0.28048226,108360.0,108350.0,0.22733945]
[1751199716498,0.28048226,108360.0,108350.0,0.04281425]
[1751199721110,0.28048226,108360.0,108350.0,0.20488747]
[1751199721609,0.28048226,108360.0,108350.0,0.02036227]
[1751199722214,0.28048226,108360.0,108350.0,0.02037954]
[1751199725013,0.28048226,108360.0,108350.0,0.20490474]
[1751199726914,0.28048226,108360.0,108350.0,0.22733945]
[1751199727817,0.28048226,108360.0,108350.0,0.1905252]
[1751199729220,0.28048226,108360.0,108350.0,0.006]
[1751199729519,0.28048226,108360.0,108350.0,0.1905252]
[1751199730318,0.28048226,108360.0,108350.0,0.006]
[1751199731020,0.77064226,108360.0,108350.0,0.006]
[1751199731320,0.1845252,108350.0,108340.0,0.03681425]
[1751199731524,0.6085252,108350.0,108340.0,0.03681425]
[1751199731715,1.1687652,108350.0,108340.0,0.03681425]
[1751199732418,1.3533572,108350.0,108340.0,0.03681425]
[1751199732724,1.3533572,108350.0,108340.0,0.03881425]
[1751199733107,1.3846572,108350.0,108340.0,0.03881425]
[1751199733309,1.3846572,108350.0,108340.0,0.04281425]
[1751199733712,1.2000652,108350.0,108340.0,0.04281425]
[1751199735417,1.2000652,108350.0,108340.0,0.006]
[1751199758040,1.2000652,108350.0,108340.0,0.1905422]
[1751199758236,0.2481252,108350.0,108340.0,0.5513422]
[1751199758442,0.8082852,108350.0,108340.0,0.6163422]
[1751199759839,0.8082852,108350.0,108340.0,0.3997]
[1751199760042,0.8410852,108350.0,108340.0,0.3997]
[1751199763445,0.8410852,108350.0,108340.0,0.5842422]
[1751199763644,0.8410852,108350.0,108340.0,0.6155422]
[1751199764446,0.8410852,108350.0,108340.0,0.65235645]
[1751199767149,0.8410852,108350.0,108340.0,0.46781425]
[1751199767355,0.8410852,108350.0,108340.0,0.43651425]
[1751199767653,0.8410852,108350.0,108340.0,0.3997]
[1751199775568,0.8410852,108350.0,108340.0,0.0389]
[1751199775770,0.8410852,108350.0,108340.0,0.3997]
[1751199777669,0.8410852,108350.0,108340.0,0.43651425]
[1751199778565,0.8410852,108350.0,108340.0,0.07571425]
[1751199778766,0.8410852,108350.0,108340.0,0.43651425]
[1751199779263,0.8410852,108350.0,108340.0,0.62105645]
[1751199780072,0.8410852,108350.0,108340.0,0.26025645]
[1751199780273,0.8410852,108350.0,108340.0,0.62105645]
[1751199780663,0.8410852,108350.0,108340.0,0.43651425]
[1751199782374,0.8410852,108350.0,108340.0,0.62105645]
[1751199783875,0.8410852,108350.0,108340.0,0.26025645]
[1751199784075,0.2481252,108350.0,108340.0,0.62105645]
[1751199784272,0.1845252,108350.0,108340.0,0.62105645]
[1751199784477,0.2458252,108350.0,108340.0,0.43651425]
[1751199784679,0.2788252,108350.0,108340.0,0.62105645]
[1751199785981,0.2788252,108350.0,108340.0,0.40361425]
[1751199786183,0.2788252,108350.0,108340.0,0.58815645]
[1751199790180,0.2788252,108350.0,108340.0,0.22735645]
[1751199790383,0.2788252,108350.0,108340.0,0.58815645]
[1751199793285,0.2458252,108350.0,108340.0,0.58815645]
[1751199793486,0.2458252,108350.0,108340.0,0.67975645]
[1751199794590,0.1845252,108350.0,108340.0,0.67975645]
[1751199796386,0.1845252,108350.0,108340.0,0.7350234]
[1751199797388,0.1845252,108350.0,108340.0,0.67975645]
[1751199798891,0.1845252,108350.0,108340.0,0.7350234]
[1751199799191,0.32448476,108360.0,108350.0,0.1845252]
[1751199799482,0.27835406,108360.0,108350.0,1.1977052]
[1751199801389,0.27835406,108360.0,108350.0,1.1997052]
[1751199801883,0.23222416,108360.0,108350.0,1.1997052]
[1751199804692,0.00157416,108360.0,108350.0,1.1997052]
[1751199805191,0.18608226,108360.0,108350.0,1.23651945]
[1751199805393,0.00157416,108360.0,108350.0,1.1997052]
[1751199805594,0.00157416,108360.0,108350.0,1.23651945]
[1751199806688,0.00157416,108360.0,108350.0,1.2917864]
[1751199807891,0.00157416,108360.0,108350.0,1.30078325]
[1751199808991,0.00157416,108360.0,108350.0,1.2917864]
[1751199809496,0.00157416,108360.0,108350.0,1.23651945]
[1751199810384,0.00157416,108360.0,108350.0,1.2917864]
[1751199811295,0.00157416,108360.0,108350.0,1.30102487]
[1751199811499,0.26577816,108380.0,108370.0,0.1844911]
[1751199811694,0.31189826,108380.0,108370.0,1.12148878]
[1751199811899,0.34519826,108380.0,108370.0,1.15178878]
[1751199812496,0.34719826,108380.0,108370.0,1.15178878]
[1751199812698,0.35019826,108380.0,108370.0,1.15178878]
[1751199813993,0.35936948,108380.0,108370.0,1.15178878]
[1751199814902,0.35019826,108380.0,108370.0,1.15178878]
[1751199815894,0.38109826,108380.0,108370.0,1.15178878]
[1751199816898,0.38109826,108380.0,108370.0,1.12144878]
[1751199817101,0.38109826,108380.0,108370.0,0.5452911]
[1751199817302,0.1844911,108370.0,108360.0,1.20427909]
[1751199817496,0.2479911,108370.0,108360.0,0.62823125]
[1751199817797,0.2479911,108370.0,108360.0,1.151057]
[1751199817996,0.2479911,108370.0,108360.0,1.16802001]
[1751199819298,0.2489911,108370.0,108360.0,1.16802001]
[1751199819999,0.2789911,108370.0,108360.0,1.16802001]
[1751199826506,0.2789911,108370.0,108360.0,1.16798001]
[1751199831408,0.2789911,108370.0,108360.0,1.20479426]
[1751199834905,0.2789911,108370.0,108360.0,1.20475426]
[1751199837907,0.2789911,108370.0,108360.0,1.20471426]
[1751199842816,0.2789911,108370.0,108360.0,1.23531426]
[1751199844314,0.2789911,108370.0,108360.0,0.87451426]
[1751199844608,0.2789911,108370.0,108360.0,1.23531426]
[1751199847415,0.2789911,108370.0,108360.0,1.29058121]
[1751199856513,0.2480911,108370.0,108360.0,1.29058121]
[1751199856818,0.1854911,108370.0,108360.0,1.35428121]
[1751199857718,0.1854911,108370.0,108360.0,1.29901426]
[1751199859620,0.001,108370.0,108360.0,1.29901426]
[1751199860423,0.1854911,108370.0,108360.0,1.29901426]
[1751199860922,0.001,108370.0,108360.0,1.29901426]
[1751199861224,0.001,108370.0,108360.0,1.35428121]
[1751199861922,0.1854911,108370.0,108360.0,1.35428121]
[1751199866126,0.1854911,108370.0,108360.0,0.99348121]
[1751199866326,0.1854911,108370.0,108360.0,1.71508121]
[1751199866826,0.1854911,108370.0,108360.0,1.73815131]
[1751199867022,0.1854911,108370.0,108360.0,1.01655131]
[1751199867432,0.1854911,108370.0,108360.0,1.73815131]
[1751199867728,0.1854911,108370.0,108360.0,1.70133706]
[1751199868429,0.1854911,108370.0,108360.0,1.12485405]
[1751199868622,0.1854911,108370.0,108360.0,0.81211109]
[1751199868826,0.2822911,108370.0,108360.0,0.96601919]
[1751199869022,0.2822911,108370.0,108360.0,1.35183109]
[1751199869227,0.2822911,108370.0,108360.0,0.79993705]
[1751199869427,0.2822911,108370.0,108360.0,1.37045705]
[1751199869729,0.2822911,108370.0,108360.0,0.83678629]
[1751199869933,0.2822911,108370.0,108360.0,1.40730629]
[1751199871927,0.2822911,108370.0,108360.0,0.83678629]
[1751199873730,0.2822911,108370.0,108360.0,1.02129449]
[1751199875431,0.2822911,108370.0,108360.0,0.83678629]
[1751199877533,0.2822911,108370.0,108360.0,0.42071934]
[1751199877733,0.2822911,108370.0,108360.0,0.41150926]
[1751199884641,0.3049399,108370.0,108360.0,0.3838701]
[1751199887842,0.3049399,108370.0,108360.0,0.5683782]
[1751199888042,0.4396599,108370.0,108360.0,0.5683782]
[1751199888245,0.4396599,108370.0,108360.0,0.6007782]
[1751199889950,0.4396599,108370.0,108360.0,0.5683782]
[1751199890243,0.4396599,108370.0,108360.0,0.3838701]
[1751199903658,0.8004599,108370.0,108360.0,0.0230701]
[1751199904962,0.1845081,108360.0,108350.0,0.3608]
[1751199905156,0.1845251,108350.0,108340.0,0.3608]
[1751199905354,0.4364939,108350.0,108340.0,0.36042936]
[1751199906557,0.4364939,108350.0,108340.0,0.36442936]
[1751199907159,0.4364939,108350.0,108340.0,0.36542936]
[1751199909065,0.7972939,108350.0,108340.0,0.005]
[1751199914462,0.86940469,108350.0,108340.0,0.005]
[1751199919269,0.50860469,108350.0,108340.0,0.005]
[1751199919469,0.86940469,108350.0,108340.0,0.005]
[1751199925576,0.50860469,108350.0,108340.0,0.005]
[1751199925776,0.86940469,108350.0,108340.0,0.005]
[1751199926173,0.50860469,108350.0,108340.0,0.005]
[1751199926375,0.86940469,108350.0,108340.0,0.005]
[1751199928977,0.50860469,108350.0,108340.0,0.005]
[1751199929176,0.86940469,108350.0,108340.0,0.005]
[1751199931079,0.50860469,108350.0,108340.0,0.005]
[1751199931271,0.86940469,108350.0,108340.0,0.005]
[1751199933571,0.50860469,108350.0,108340.0,0.005]
[1751199933772,0.86940469,108350.0,108340.0,0.005]
[1751199935278,1.3337539,108350.0,108340.0,0.005]
[1751199935480,1.3031539,108350.0,108340.0,0.099]
[1751199937982,1.3031539,108350.0,108340.0,0.2835422]
[1751199938481,0.3410139,108350.0,108340.0,0.6443422]
[1751199939183,0.2071739,108350.0,108340.0,0.6443422]
[1751199953305,0.2071739,108350.0,108340.0,0.2835422]
[1751199953506,0.2071739,108350.0,108340.0,0.6443422]
[1751199956105,0.2071739,108350.0,108340.0,0.2835422]
[1751199956306,0.2071739,108350.0,108340.0,0.6443422]
[1751199960008,0.2071739,108350.0,108340.0,0.2835422]
[1751199960214,0.2071739,108350.0,108340.0,0.6443422]
[1751199961010,0.2703739,108350.0,108340.0,0.6139422]
[1751199962115,0.2703739,108350.0,108340.0,0.5810422]
[1751199963808,0.3021739,108350.0,108340.0,0.5810422]
[1751199967922,0.3021739,108350.0,108340.0,0.63620564]
[1751199974424,0.3021739,108350.0,108340.0,0.66900564]
[1751199974726,0.2795251,108350.0,108340.0,0.66900564]
[1751199976633,0.2795251,108350.0,108340.0,0.63620564]
[1751199979833,0.2795251,108350.0,108340.0,0.6506315]
[1751199980934,0.2795251,108350.0,108340.0,0.59546806]
[1751199981734,0.2795251,108350.0,108340.0,0.65076552]
[1751199982235,0.2795251,108350.0,108340.0,0.59546806]
[1751199982835,0.2795251,108350.0,108340.0,0.65077006]
[1751199988237,0.2795251,108350.0,108340.0,1.01157006]
[1751199988938,0.2795251,108350.0,108340.0,1.57533006]
[1751199991042,0.4551158,108360.0,108350.0,0.1845252]
[1751199991246,0.51904516,108360.0,108350.0,0.58219418]
[1751199992140,0.51904516,108360.0,108350.0,0.58419418]
[1751199992743,0.38684516,108360.0,108350.0,0.58419418]
[1751199993132,0.41744516,108360.0,108350.0,0.58419418]
[1751200011256,0.41744516,108360.0,108350.0,0.39966898]
[1751200011453,0.41744516,108360.0,108350.0,0.58419418]
[1751200022968,0.54792516,108360.0,108350.0,0.58419418]
[1751200023467,0.54792516,108360.0,108350.0,0.39966898]
[1751200024263,0.54792516,108360.0,108350.0,0.3628]
[1751200026567,0.54792516,108360.0,108350.0,0.39966898]
[1751200026973,0.54792516,108360.0,108350.0,0.58419418]
[1751200029171,0.54792516,108360.0,108350.0,0.39966898]
[1751200047884,0.54792516,108360.0,108350.0,0.3628]
[1751200051890,0.1845252,108350.0,108340.0,0.03686898]
[1751200052091,0.2787252,108350.0,108340.0,0.03649834]
[1751200052591,0.1845422,108340.0,108330.0,0.3608]
[1751200052790,0.4097022,108340.0,108330.0,0.37522695]
[1751200053494,0.4097022,108340.0,108330.0,0.3608]
[1751200056493,0.4097022,108340.0,108330.0,0.3638]
[1751200060099,0.4097022,108340.0,108330.0,0.3688]
[1751200070302,0.4097022,108340.0,108330.0,0.008]
[1751200070502,0.4097022,108340.0,108330.0,0.3688]
[1751200075202,0.7705022,108340.0,108330.0,0.008]
[1751200077205,1.3327022,108340.0,108330.0,0.008]
[1751200081103,0.1845763,108320.0,108310.0,0.36172323]
[1751200081409,0.8771363,108320.0,108310.0,0.41702523]
[1751200081710,0.9736363,108320.0,108310.0,0.36172323]
[1751200082207,1.3344363,108320.0,108310.0,0.05221329]
[1751200082505,1.3344363,108320.0,108310.0,0.03778294]
[1751200082704,1.43481196,108320.0,108310.0,0.00808234]
[1751200082910,1.43481196,108320.0,108310.0,4e-08]
[1751200083412,1.61945996,108320.0,108310.0,4e-08]
[1751200083912,1.86945996,108320.0,108310.0,4e-08]
[1751200085108,0.1846102,108300.0,108290.0,0.416102]
[1751200085414,0.8771302,108300.0,108290.0,0.42954501]
[1751200085713,0.9698302,108300.0,108290.0,0.42954501]
[1751200086415,0.9698302,108300.0,108290.0,0.43554501]
[1751200086810,0.9698302,108300.0,108290.0,0.07573452]
[1751200087112,0.9698302,108300.0,108290.0,0.006]
[1751200087814,0.97884281,108300.0,108290.0,0.006]
[1751200088014,0.97884281,108300.0,108290.0,0.004]
[1751200088210,0.98284281,108300.0,108290.0,0.004]
[1751200088810,0.1846275,108290.0,108280.0,0.45032549]
[1751200089013,0.2149275,108290.0,108280.0,0.46475881]
[1751200089613,0.1846275,108290.0,108280.0,0.64940331]
[1751200089816,0.3149475,108290.0,108280.0,0.68200331]
[1751200091212,0.3149475,108290.0,108280.0,0.66756999]
[1751200091614,0.1846275,108290.0,108280.0,0.66756999]
[1751200092122,0.1846275,108290.0,108280.0,0.61226799]
[1751200092817,0.1846275,108290.0,108280.0,0.66756999]
[1751200095225,0.3230906,108300.0,108290.0,0.1846274]
[1751200095417,0.3230906,108300.0,108290.0,0.6417274]
[1751200096715,0.3250906,108300.0,108290.0,0.6417274]
[1751200101423,0.3250906,108300.0,108290.0,0.4571]
[1751200101623,0.3901906,108300.0,108290.0,0.6417274]
[1751200101925,0.3901906,108300.0,108290.0,0.4571]
[1751200102623,0.3901906,108300.0,108290.0,0.6417274]
[1751200103329,0.3901906,108300.0,108290.0,1.0025274]
[1751200111733,0.3250906,108300.0,108290.0,1.0025274]
[1751200112733,0.232779,108300.0,108290.0,1.0025274]
[1751200115333,0.232779,108300.0,108290.0,1.01195057]
[1751200116537,0.232779,108300.0,108290.0,1.04880035]
[1751200117936,0.232779,108300.0,108290.0,1.03937718]
[1751200119336,0.262879,108300.0,108290.0,1.03937718]
[1751200120341,0.262879,108300.0,108290.0,1.09467918]
[1751200122435,0.295279,108300.0,108290.0,1.09467918]
[1751200125142,0.295279,108300.0,108290.0,0.37307918]
[1751200125441,0.295279,108300.0,108290.0,1.09467918]
[1751200130149,0.295279,108300.0,108290.0,0.37307918]
[1751200130348,0.295279,108300.0,108290.0,1.09467918]
[1751200131346,0.295279,108300.0,108290.0,1.05380997]
[1751200135556,0.295279,108300.0,108290.0,1.02220997]
[1751200137862,0.295279,108300.0,108290.0,0.98536019]
[1751200138459,0.295279,108300.0,108290.0,1.48250019]
[1751200138658,0.326979,108300.0,108290.0,1.48250019]
[1751200139465,0.326979,108300.0,108290.0,1.48246019]
[1751200140563,0.326979,108300.0,108290.0,0.92066019]
[1751200140765,0.326979,108300.0,108290.0,1.48246019]
[1751200141364,0.326979,108300.0,108290.0,1.51930997]
[1751200143777,0.326979,108300.0,108290.0,1.48246019]
[1751200144276,0.326979,108300.0,108290.0,1.51930997]
[1751200148382,0.326979,108300.0,108290.0,1.57461197]
[1751200148882,0.326979,108300.0,108290.0,0.85301197]
[1751200149183,0.326979,108300.0,108290.0,1.21381197]
[1751200150080,0.326979,108300.0,108290.0,1.15850997]
[1751200150278,0.326979,108300.0,108290.0,1.18890997]
[1751200150882,0.326979,108300.0,108290.0,0.82810997]
[1751200151084,0.326979,108300.0,108290.0,1.18890997]
[1751200155086,0.326979,108300.0,108290.0,1.24421197]
[1751200160084,0.326979,108300.0,108290.0,1.1929294]
[1751200165994,1.326979,108300.0,108290.0,1.1929294]
[1751200167196,1.326979,108300.0,108290.0,0.8321294]
[1751200167397,1.326979,108300.0,108290.0,1.1929294]
[1751200168995,1.326979,108300.0,108290.0,1.1926494]
[1751200170904,1.326979,108300.0,108290.0,0.8318494]
[1751200171197,1.326979,108300.0,108290.0,1.1926494]
[1751200176701,1.326979,108300.0,108290.0,0.416102]
[1751200177003,1.326979,108300.0,108290.0,0.977542]
[1751200177806,1.326979,108300.0,108290.0,1.01446838]
[1751200178305,1.326979,108300.0,108290.0,1.19909578]
[1751200183211,1.326979,108300.0,108290.0,0.63765578]
[1751200183405,1.326979,108300.0,108290.0,1.19901578]
[1751200185006,0.326979,108300.0,108290.0,0.19901578]
[1751200185211,0.4192908,108300.0,108290.0,0.1846274]
[1751200189916,0.1846274,108290.0,108280.0,0.45210358]
[1751200190109,0.2780274,108290.0,108280.0,0.10573648]
[1751200190304,0.2780274,108290.0,108280.0,0.03200653]
[1751200190610,0.2780274,108290.0,108280.0,0.01535639]
[1751200191313,0.9691874,108290.0,108280.0,0.00192349]
[1751200206216,0.9689074,108290.0,108280.0,0.00192349]
[1751200214727,1.3297074,108290.0,108280.0,0.00192349]
[1751200217135,0.9689074,108290.0,108280.0,0.00192349]
[1751200217428,1.3297074,108290.0,108280.0,0.00192349]
[1751200218335,1.3297074,108290.0,108280.0,0.03881367]
[1751200218638,0.9380874,108290.0,108280.0,0.58425797]
[1751200218825,0.9380874,108290.0,108280.0,0.61605797]
[1751200219336,0.2473274,108290.0,108280.0,0.63049231]
[1751200219536,0.9380874,108290.0,108280.0,0.63049231]
[1751200220638,0.9708874,108290.0,108280.0,0.63049231]
[1751200221240,0.9708874,108290.0,108280.0,0.26969231]
[1751200221438,0.9708874,108290.0,108280.0,0.63049231]
[1751200223139,0.9708874,108290.0,108280.0,0.26969231]
[1751200223340,0.9708874,108290.0,108280.0,0.63049231]
[1751200223539,0.9708874,108290.0,108280.0,0.68581266]
[1751200225341,0.9708874,108290.0,108280.0,0.67137832]
[1751200227240,0.9708874,108290.0,108280.0,0.31057832]
[1751200227544,0.9708874,108290.0,108280.0,0.67137832]
[1751200228639,0.9708874,108290.0,108280.0,0.61605797]
[1751200229035,0.9708874,108290.0,108280.0,0.6304921]
[1751200230042,0.9708874,108290.0,108280.0,0.61605797]
[1751200237248,0.9708874,108290.0,108280.0,0.25525797]
[1751200237436,0.9708874,108290.0,108280.0,0.61605797]
[1751200239246,0.9708874,108290.0,108280.0,0.67137832]
[1751200242250,0.9708874,108290.0,108280.0,0.61605797]
[1751200244156,0.9708874,108290.0,108280.0,0.67137832]
[1751200245062,0.9708874,108290.0,108280.0,0.61605797]
[1751200248057,0.9708874,108290.0,108280.0,0.25525797]
[1751200248256,0.9708874,108290.0,108280.0,0.6304921]
[1751200249860,0.9708874,108290.0,108280.0,0.61605797]
[1751200250263,0.9708874,108290.0,108280.0,0.6304921]
[1751200251861,0.9708874,108290.0,108280.0,0.67137832]
[1751200253263,0.9708874,108290.0,108280.0,0.31057832]
[1751200253562,0.9708874,108290.0,108280.0,0.67137832]
[1751200254162,0.9708874,108290.0,108280.0,0.31057832]
[1751200254362,0.9708874,108290.0,108280.0,0.67137832]
[1751200255967,0.1846274,108290.0,108280.0,0.67137832]
[1751200256162,0.1846274,108290.0,108280.0,0.75121227]
[1751200256464,0.1846274,108290.0,108280.0,0.71432209]
[1751200257264,0.1846274,108290.0,108280.0,0.73273169]
[1751200257464,0.1846274,108290.0,108280.0,0.74924936]
[1751200258661,0.1846274,108290.0,108280.0,0.73090102]
[1751200264373,0.1846274,108290.0,108280.0,0.76779907]
[1751200268676,0.1846274,108290.0,108280.0,0.73090102]
[1751200276683,0.2161274,108290.0,108280.0,0.73090102]
[1751200277985,0.2468274,108290.0,108280.0,0.73090102]
[1751200278681,0.2468274,108290.0,108280.0,0.74924936]
[1751200283587,0.2468274,108290.0,108280.0,0.38844936]
[1751200283788,0.2468274,108290.0,108280.0,0.74924936]
[1751200286284,0.2468274,108290.0,108280.0,0.38844936]
[1751200286480,0.2468274,108290.0,108280.0,0.74924936]
[1751200288992,0.2468274,108290.0,108280.0,0.68384936]
[1751200289195,0.2773274,108290.0,108280.0,0.68384936]
[1751200293197,0.2773274,108290.0,108280.0,0.32304936]
[1751200293399,0.2773274,108290.0,108280.0,0.68384936]
[1751200295899,0.2773274,108290.0,108280.0,0.32304936]
[1751200296501,0.2773274,108290.0,108280.0,0.68384936]
[1751200301204,0.2773274,108290.0,108280.0,0.68584936]
[1751200301398,0.2773274,108290.0,108280.0,0.68484936]
[1751200301598,0.2773274,108290.0,108280.0,0.68684936]
[1751200307300,0.2773274,108290.0,108280.0,0.65504936]
[1751200314112,0.2773274,108290.0,108280.0,0.58131941]
[1751200320614,0.2773274,108290.0,108280.0,0.65504936]
[1751200323721,0.6381274,108290.0,108280.0,0.09308739]
[1751200324020,0.7673674,108290.0,108280.0,0.07865344]
[1751200324220,0.7673674,108290.0,108280.0,0.00492349]
[1751200325321,0.7673674,108290.0,108280.0,0.060328]
[1751200325820,1.3273274,108290.0,108280.0,0.060328]
[1751200327817,1.7620234,108290.0,108280.0,0.09726162]
[1751200328421,1.7620234,108290.0,108280.0,0.04185711]
[1751200330529,1.0728234,108290.0,108280.0,0.04185711]
[1751200331124,1.5119434,108290.0,108280.0,0.04185711]
[1751200331324,1.5119034,108290.0,108280.0,0.04185711]
[1751200332233,1.5119034,108290.0,108280.0,0.00492349]
[1751200333526,0.7672474,108290.0,108280.0,0.00492349]
[1751200333730,1.3272074,108290.0,108280.0,0.00492349]
[1751200339437,0.6381274,108290.0,108280.0,0.00492349]
[1751200339635,1.3272074,108290.0,108280.0,0.00492349]
[1751200339836,1.3272074,108290.0,108280.0,0.03642349]
[1751200345241,1.3272074,108290.0,108280.0,0.00492349]
[1751200348941,1.2967074,108290.0,108280.0,0.00492349]
[1751200349241,1.2966274,108290.0,108280.0,0.03782349]
[1751200350045,0.6076274,108290.0,108280.0,0.03782349]
[1751200350342,1.2966274,108290.0,108280.0,0.03782349]
[1751200350541,1.3285274,108290.0,108280.0,0.03782349]
[1751200354443,2.14682081,108280.0,108270.0,0.78417532]
[1751200355542,2.14682081,108280.0,108270.0,0.78817532]
[1751200356650,2.14682081,108280.0,108270.0,0.74201012]
[1751200356846,2.14682081,108280.0,108270.0,0.74501012]
[1751200358550,2.14682081,108280.0,108270.0,0.77571012]
[1751200358752,2.14682081,108280.0,108270.0,0.78494943]
[1751200359058,2.14682081,108280.0,108270.0,0.48246899]
[1751200359252,2.24232081,108280.0,108270.0,0.41916899]
[1751200359848,2.24232081,108280.0,108270.0,0.60383039]
[1751200360251,2.24232081,108280.0,108270.0,0.6592349]
[1751200366257,2.24232081,108280.0,108270.0,0.60786591]
[1751200368652,2.24232081,108280.0,108270.0,0.64481294]
[1751200368870,2.24232081,108280.0,108270.0,0.65924831]
[1751200374963,2.24232081,108280.0,108270.0,0.60786591]
[1751200375657,2.24232081,108280.0,108270.0,0.24706591]
[1751200375853,2.24232081,108280.0,108270.0,0.60786591]
[1751200377559,2.24232081,108280.0,108270.0,0.62230128]
[1751200379963,2.24232081,108280.0,108270.0,0.43763988]
[1751200385968,2.24232081,108280.0,108270.0,0.62230118]
[1751200389365,2.14682081,108280.0,108270.0,0.62230118]
[1751200389570,1.96217651,108280.0,108270.0,1.65284118]
[1751200389772,0.63656202,108280.0,108270.0,2.03196662]
[1751200390269,0.63656202,108280.0,108270.0,1.80027695]
[1751200392267,0.63656202,108280.0,108270.0,1.70823667]
[1751200392666,0.63656202,108280.0,108270.0,1.89294867]
[1751200393367,0.63656202,108280.0,108270.0,1.96671603]
[1751200396575,0.63656202,108280.0,108270.0,1.78200403]
[1751200399175,0.63656202,108280.0,108270.0,1.70823667]
[1751200400064,0.63656202,108280.0,108270.0,1.78200403]
[1751200400271,0.63656202,108280.0,108270.0,1.70823667]